[Event "Titled Tuesday Blitz November 01 Early 2022"]
[White "Odegov, Artem"]
[Black "Smietanska, Wiktoria"]
[WhiteFideId "34183644"]
[BlackFideId "21869359"]
[WhiteElo "2298"]
[BlackElo "1854"]
[Result "1-0"]
[Round "01"]
[TimeControl "180+1"]
[Date "2022.11.02"]
[WhiteClock "0:00:10"]
[BlackClock "0:00:03"]

1. d4 {[%clk 0:02:51]}  Nf6 {[%clk 0:02:59]} 2. c4 {[%clk 0:02:49]}  g6 {[%clk 0:02:57]} 3. Nc3 {[%clk 0:02:49]}  Bg7 {[%clk 0:02:57]} 4. e4 {[%clk 0:02:49]}  d6 {[%clk 0:02:54]} 5. h3 {[%clk 0:02:48]}  O-O {[%clk 0:02:47]} 6. Be3 {[%clk 0:02:48]}  e5 {[%clk 0:02:34]} 7. d5 {[%clk 0:02:47]}  Nh5 {[%clk 0:02:23]} 8. g3 {[%clk 0:02:44]}  Qe8 {[%clk 0:02:09]} 9. Be2 {[%clk 0:02:40]}  f6 {[%clk 0:01:16]} 10. Qd2 {[%clk 0:02:22]}  f5 {[%clk 0:01:06]} 11. Bh6 {[%clk 0:02:00]}  f4 {[%clk 0:00:17]} 12. Bxg7 {[%clk 0:01:57]}  Nxg7 {[%clk 0:00:17]} 13. g4 {[%clk 0:01:43]}  Nd7 {[%clk 0:00:15]} 14. Nf3 {[%clk 0:01:42]}  a5 {[%clk 0:00:15]} 15. O-O-O {[%clk 0:01:43]}  Nc5 {[%clk 0:00:15]} 16. Rdg1 {[%clk 0:01:42]}  h6 {[%clk 0:00:14]} 17. h4 {[%clk 0:01:36]}  Bd7 {[%clk 0:00:13]} 18. Ne1 {[%clk 0:01:28]}  Rb8 {[%clk 0:00:09]} 19. f3 {[%clk 0:01:20]}  Qe7 {[%clk 0:00:08]} 20. Nd3 {[%clk 0:01:13]}  b6 {[%clk 0:00:07]} 21. Ne1 {[%clk 0:01:14]}  Bc8 {[%clk 0:00:05]} 22. Nc2 {[%clk 0:01:12]}  Ba6 {[%clk 0:00:05]} 23. Na3 {[%clk 0:01:13]}  Qd7 {[%clk 0:00:04]} 24. Rh2 {[%clk 0:01:09]}  Bc8 {[%clk 0:00:04]} 25. Bd1 {[%clk 0:01:08]}  Qe7 {[%clk 0:00:02]} 26. Nab5 {[%clk 0:01:02]}  Bd7 {[%clk 0:00:03]} 27. Rgh1 {[%clk 0:01:00]}  Be8 {[%clk 0:00:02]} 28. Na7 {[%clk 0:00:57]}  Rb7 {[%clk 0:00:03]} 29. Nc6 {[%clk 0:00:56]}  Bxc6 {[%clk 0:00:03]} 30. dxc6 {[%clk 0:00:57]}  Ra7 {[%clk 0:00:03]} 31. Ba4 {[%clk 0:00:43]}  Nge6 {[%clk 0:00:03]} 32. Rd1 {[%clk 0:00:31]}  Nd4 {[%clk 0:00:02]} 33. Qf2 {[%clk 0:00:30]}  Qe8 {[%clk 0:00:01]} 34. Rxd4 {[%clk 0:00:22]}  exd4 {[%clk 0:00:01]} 35. Qxd4 {[%clk 0:00:23]}  Qf7 {[%clk 0:00:01]} 36. Bc2 {[%clk 0:00:17]}  Qg7 {[%clk 0:00:01]} 37. Qd2 {[%clk 0:00:17]}  Ne6 {[%clk 0:00:01]} 38. Nb5 {[%clk 0:00:16]}  Raa8 {[%clk 0:00:01]} 39. Rh1 {[%clk 0:00:15]}  Rae8 {[%clk 0:00:01]} 40. Rd1 {[%clk 0:00:14]}  Re7 {[%clk 0:00:02]} 41. Qd5 {[%clk 0:00:14]}  Kh8 {[%clk 0:00:01]} 42. c5 {[%clk 0:00:15]}  bxc5 {[%clk 0:00:01]} 43. Bb3 {[%clk 0:00:13]}  Ra8 {[%clk 0:00:02]} 44. Qd2 {[%clk 0:00:12]}  Nd4 {[%clk 0:00:02]} 45. Nxd4 {[%clk 0:00:12]}  cxd4 {[%clk 0:00:03]} 46. Qxd4 {[%clk 0:00:11]}  Qxd4 {[%clk 0:00:03]} 47. Rxd4 {[%clk 0:00:12]}  Re5 {[%clk 0:00:04]} 48. Bd5 {[%clk 0:00:11]}  Ra6 {[%clk 0:00:03]} 49. Kd2 {[%clk 0:00:09]}  Rb6 {[%clk 0:00:03]} 50. b3 {[%clk 0:00:10]}  Re8 {[%clk 0:00:03]} 51. Kc3 {[%clk 0:00:10]}  Kg7 {[%clk 0:00:03]} 52. Ra4 {[%clk 0:00:09]}  Ra8 {[%clk 0:00:03]} 53. a3 {[%clk 0:00:08]}  Rb5 {[%clk 0:00:03]} 54. Rc4 {[%clk 0:00:05]}  Ra6 {[%clk 0:00:02]} 55. Kd4 {[%clk 0:00:04]}  Kf6 {[%clk 0:00:02]} 56. Ra4 {[%clk 0:00:04]}  Rc5 {[%clk 0:00:02]} 57. Rc4 {[%clk 0:00:04]}  Rxc4+ {[%clk 0:00:02]} 58. Kxc4 {[%clk 0:00:05]}  Rb6 {[%clk 0:00:02]} 59. b4 {[%clk 0:00:05]}  axb4 {[%clk 0:00:02]} 60. axb4 {[%clk 0:00:06]}  Ke5 {[%clk 0:00:03]} 61. b5 {[%clk 0:00:04]}  g5 {[%clk 0:00:02]} 62. h5 {[%clk 0:00:04]}  Rb8 {[%clk 0:00:02]} 63. Bf7 {[%clk 0:00:04]}  Ra8 {[%clk 0:00:02]} 64. Bg6 {[%clk 0:00:04]}  Ra4+ {[%clk 0:00:02]} 65. Kb3 {[%clk 0:00:04]}  Ra1 {[%clk 0:00:02]} 66. Kb4 {[%clk 0:00:04]}  Rb1+ {[%clk 0:00:03]} 67. Ka5 {[%clk 0:00:04]}  Kd4 {[%clk 0:00:03]} 68. Ka6 {[%clk 0:00:03]}  Kc5 {[%clk 0:00:02]} 69. Kb7 {[%clk 0:00:03]}  Kxb5 {[%clk 0:00:01]} 70. Kxc7 {[%clk 0:00:03]}  Rc1 {[%clk 0:00:02]} 71. Kxd6 {[%clk 0:00:04]}  Rxc6+ {[%clk 0:00:02]} 72. Ke5 {[%clk 0:00:04]}  Rb6 {[%clk 0:00:02]} 73. Be8+ {[%clk 0:00:03]}  Kc5 {[%clk 0:00:02]} 74. Bf7 {[%clk 0:00:04]}  Ra6 {[%clk 0:00:02]} 75. Bd5 {[%clk 0:00:04]}  Rb6 {[%clk 0:00:01]} 76. Kf5 {[%clk 0:00:05]}  Ra6 {[%clk 0:00:02]} 77. Be6 {[%clk 0:00:05]}  Kd6 {[%clk 0:00:02]} 78. Kf6 {[%clk 0:00:05]}  Kc7 {[%clk 0:00:02]} 79. Kf7 {[%clk 0:00:04]}  Kd8 {[%clk 0:00:01]} 80. e5 {[%clk 0:00:04]}  Rb6 {[%clk 0:00:01]} 81. Bf5 {[%clk 0:00:05]}  Ra6 {[%clk 0:00:01]} 82. e6 {[%clk 0:00:05]}  Ra7+ {[%clk 0:00:02]} 83. Kg6 {[%clk 0:00:05]}  Ke7 {[%clk 0:00:02]} 84. Kg7 {[%clk 0:00:05]}  Ra6 {[%clk 0:00:02]} 85. Kg6 {[%clk 0:00:04]}  Ra3 {[%clk 0:00:02]} 86. Kxh6 {[%clk 0:00:04]}  Rxf3 {[%clk 0:00:02]} 87. Kxg5 {[%clk 0:00:05]}  Rf1 {[%clk 0:00:02]} 88. h6 {[%clk 0:00:05]}  f3 {[%clk 0:00:02]} 89. h7 {[%clk 0:00:05]}  Rh1 {[%clk 0:00:03]} 90. Bd3 {[%clk 0:00:05]}  f2 {[%clk 0:00:03]} 91. Kf4 {[%clk 0:00:05]}  f1=Q+ {[%clk 0:00:02]} 92. Bxf1 {[%clk 0:00:05]}  Rxf1+ {[%clk 0:00:03]} 93. Kg5 {[%clk 0:00:06]}  Rh1 {[%clk 0:00:04]} 94. Kg6 {[%clk 0:00:06]}  Kxe6 {[%clk 0:00:04]} 95. Kg7 {[%clk 0:00:06]}  Ke7 {[%clk 0:00:04]} 96. g5 {[%clk 0:00:06]}  Ke8 {[%clk 0:00:04]} 97. g6 {[%clk 0:00:07]}  Ke7 {[%clk 0:00:04]} 98. h8=Q {[%clk 0:00:07]}  Rxh8 {[%clk 0:00:04]} 99. Kxh8 {[%clk 0:00:08]}  Kf6 {[%clk 0:00:03]} 100. g7 {[%clk 0:00:09]}  Kf7 {[%clk 0:00:03]} 101. g8=Q+ {[%clk 0:00:10]} 1-0


[Site "https://www.chess.com"]

[Event "Titled Tuesday Blitz November 01 Early 2022"]
[White "Omariev, Maksim"]
[Black "Narayanan, Srinath"]
[WhiteFideId "4193423"]
[BlackFideId "5018420"]
[WhiteElo "2408"]
[BlackElo "2459"]
[Result "0-1"]
[Round "01"]
[TimeControl "180+1"]
[Date "2022.11.02"]
[WhiteClock "0:00:56"]
[BlackClock "0:01:29"]

1. g4 {[%clk 0:02:24]}  e5 {[%clk 0:02:57]} 2. Bg2 {[%clk 0:02:23]}  d5 {[%clk 0:02:56]} 3. h3 {[%clk 0:02:20]}  Nc6 {[%clk 0:02:56]} 4. c3 {[%clk 0:02:19]}  Nf6 {[%clk 0:02:54]} 5. d4 {[%clk 0:02:19]}  h6 {[%clk 0:02:50]} 6. dxe5 {[%clk 0:02:19]}  Nxe5 {[%clk 0:02:50]} 7. Bf4 {[%clk 0:02:20]}  Ng6 {[%clk 0:02:48]} 8. Bg3 {[%clk 0:02:19]}  Bd6 {[%clk 0:02:46]} 9. Bxd6 {[%clk 0:02:19]}  Qxd6 {[%clk 0:02:47]} 10. Nd2 {[%clk 0:02:08]}  Nf4 {[%clk 0:02:41]} 11. Bf3 {[%clk 0:02:08]}  Bd7 {[%clk 0:02:36]} 12. Qb3 {[%clk 0:01:55]}  O-O-O {[%clk 0:02:25]} 13. O-O-O {[%clk 0:01:55]}  Rhe8 {[%clk 0:02:24]} 14. Kb1 {[%clk 0:01:51]}  Qa6 {[%clk 0:02:22]} 15. e3 {[%clk 0:01:29]}  Ba4 {[%clk 0:02:00]} 16. Qa3 {[%clk 0:01:16]}  Qd3+ {[%clk 0:01:31]} 17. Ka1 {[%clk 0:00:57]}  Bxd1 {[%clk 0:01:29]} 18. Bxd1 {[%clk 0:00:56]}  Qxd2 {[%clk 0:01:29]} 0-1


[Site "https://www.chess.com"]

[Event "Titled Tuesday Blitz November 01 Early 2022"]
[White "Osmonbekov, Talaibek"]
[Black "Belozerov, Andrei"]
[WhiteFideId "2017253"]
[BlackFideId "4120213"]
[WhiteElo "2135"]
[BlackElo "2360"]
[Result "0-1"]
[Round "01"]
[TimeControl "180+1"]
[Date "2022.11.02"]
[WhiteClock "0:00:35"]
[BlackClock "0:01:05"]

1. d4 {[%clk 0:02:58]}  Nf6 {[%clk 0:02:58]} 2. Bf4 {[%clk 0:02:57]}  d5 {[%clk 0:02:57]} 3. Nc3 {[%clk 0:02:57]}  Bf5 {[%clk 0:02:57]} 4. e3 {[%clk 0:02:56]}  e6 {[%clk 0:02:58]} 5. Bd3 {[%clk 0:02:52]}  Bg6 {[%clk 0:02:57]} 6. Nb5 {[%clk 0:02:30]}  Bd6 {[%clk 0:02:52]} 7. Ne2 {[%clk 0:02:19]}  O-O {[%clk 0:02:47]} 8. O-O {[%clk 0:02:18]}  a6 {[%clk 0:02:38]} 9. Nxd6 {[%clk 0:02:17]}  cxd6 {[%clk 0:02:39]} 10. c4 {[%clk 0:02:17]}  dxc4 {[%clk 0:02:38]} 11. Bxc4 {[%clk 0:02:15]}  d5 {[%clk 0:02:37]} 12. Bd3 {[%clk 0:02:14]}  Nc6 {[%clk 0:02:33]} 13. Rc1 {[%clk 0:02:12]}  Rc8 {[%clk 0:02:27]} 14. a3 {[%clk 0:01:56]}  Na5 {[%clk 0:02:09]} 15. Rxc8 {[%clk 0:01:17]}  Qxc8 {[%clk 0:02:10]} 16. b3 {[%clk 0:01:13]}  Qc6 {[%clk 0:01:40]} 17. Bxg6 {[%clk 0:01:11]}  hxg6 {[%clk 0:01:41]} 18. Qd3 {[%clk 0:01:10]}  Rc8 {[%clk 0:01:39]} 19. Rd1 {[%clk 0:00:57]}  Qc2 {[%clk 0:01:28]} 20. b4 {[%clk 0:00:55]}  Qxd3 {[%clk 0:01:24]} 21. Rxd3 {[%clk 0:00:56]}  Nc4 {[%clk 0:01:25]} 22. f3 {[%clk 0:00:56]}  b5 {[%clk 0:01:17]} 23. Kf2 {[%clk 0:00:55]}  Nd7 {[%clk 0:01:16]} 24. e4 {[%clk 0:00:51]}  Ndb6 {[%clk 0:01:15]} 25. g4 {[%clk 0:00:43]}  Kf8 {[%clk 0:01:13]} 26. h4 {[%clk 0:00:42]}  Ke7 {[%clk 0:01:12]} 27. Ng3 {[%clk 0:00:36]}  Nb2 {[%clk 0:01:06]} 28. Rd2 {[%clk 0:00:35]}  N6c4 {[%clk 0:01:05]} 29. Rc2 {[%clk 0:00:35]}  Nd3+ {[%clk 0:01:05]} 0-1


[Site "https://www.chess.com"]

[Event "Titled Tuesday Blitz November 01 Early 2022"]
[White "Paravyan, David"]
[Black "Lawson, Eric"]
[WhiteFideId "4194985"]
[BlackFideId "2604116"]
[WhiteElo "2555"]
[BlackElo "2539"]
[Result "1-0"]
[Round "01"]
[TimeControl "180+1"]
[Date "2022.11.01"]
[WhiteClock "0:00:05"]
[BlackClock "0:00:03"]

1. e4 {[%clk 0:03:00]}  c5 {[%clk 0:02:59]} 2. Nf3 {[%clk 0:03:01]}  d6 {[%clk 0:02:59]} 3. d4 {[%clk 0:03:01]}  cxd4 {[%clk 0:03:00]} 4. Nxd4 {[%clk 0:03:02]}  Nf6 {[%clk 0:03:00]} 5. Nc3 {[%clk 0:03:02]}  a6 {[%clk 0:03:01]} 6. Bg5 {[%clk 0:03:02]}  e6 {[%clk 0:03:01]} 7. f4 {[%clk 0:03:02]}  Qb6 {[%clk 0:03:01]} 8. Qd2 {[%clk 0:03:02]}  Qxb2 {[%clk 0:03:01]} 9. Rb1 {[%clk 0:03:03]}  Qa3 {[%clk 0:03:01]} 10. f5 {[%clk 0:03:03]}  Nc6 {[%clk 0:03:01]} 11. fxe6 {[%clk 0:03:03]}  fxe6 {[%clk 0:02:59]} 12. Nxc6 {[%clk 0:03:01]}  bxc6 {[%clk 0:02:59]} 13. Bd3 {[%clk 0:03:00]}  Qa5 {[%clk 0:02:56]} 14. O-O {[%clk 0:02:57]}  Be7 {[%clk 0:02:56]} 15. e5 {[%clk 0:02:08]}  Qxe5 {[%clk 0:02:46]} 16. Rbe1 {[%clk 0:01:55]}  Qc5+ {[%clk 0:02:42]} 17. Kh1 {[%clk 0:01:53]}  Qa5 {[%clk 0:01:56]} 18. Qe3 {[%clk 0:01:42]}  Ng4 {[%clk 0:01:43]} 19. Qg3 {[%clk 0:01:05]}  Qxg5 {[%clk 0:01:35]} 20. Ne4 {[%clk 0:01:06]}  Qh5 {[%clk 0:00:53]} 21. Nxd6+ {[%clk 0:00:57]}  Kd7 {[%clk 0:00:26]} 22. Nc4 {[%clk 0:00:34]}  Ke8 {[%clk 0:00:12]} 23. Nb6 {[%clk 0:00:20]}  Bh4 {[%clk 0:00:07]} 24. Qc7 {[%clk 0:00:15]}  Bxe1 {[%clk 0:00:04]} 25. Qxc6+ {[%clk 0:00:13]}  Ke7 {[%clk 0:00:03]} 26. Qc7+ {[%clk 0:00:13]}  Ke8 {[%clk 0:00:03]} 27. h3 {[%clk 0:00:05]} 1-0


[Site "https://www.chess.com"]

[Event "Titled Tuesday Blitz November 01 Early 2022"]
[White "Petrovic, Aleksa"]
[Black "Pultinevicius, Paulius"]
[WhiteFideId "967629"]
[BlackFideId "12809390"]
[WhiteElo "2242"]
[BlackElo "2500"]
[Result "0-1"]
[Round "01"]
[TimeControl "180+1"]
[Date "2022.11.02"]
[WhiteClock "0:00:02"]
[BlackClock "0:00:12"]

1. e4 {[%clk 0:02:56]}  c5 {[%clk 0:02:57]} 2. Nf3 {[%clk 0:02:53]}  e6 {[%clk 0:02:58]} 3. d4 {[%clk 0:02:51]}  cxd4 {[%clk 0:02:59]} 4. Nxd4 {[%clk 0:02:51]}  a6 {[%clk 0:02:59]} 5. c4 {[%clk 0:02:48]}  Nf6 {[%clk 0:02:58]} 6. Nc3 {[%clk 0:02:49]}  Bb4 {[%clk 0:02:59]} 7. Qd3 {[%clk 0:02:47]}  O-O {[%clk 0:02:58]} 8. Be2 {[%clk 0:02:45]}  d5 {[%clk 0:02:43]} 9. exd5 {[%clk 0:02:39]}  exd5 {[%clk 0:02:42]} 10. cxd5 {[%clk 0:02:38]}  Nxd5 {[%clk 0:02:42]} 11. O-O {[%clk 0:02:38]}  Nxc3 {[%clk 0:02:25]} 12. bxc3 {[%clk 0:02:38]}  Bc5 {[%clk 0:02:23]} 13. Be3 {[%clk 0:02:33]}  Qf6 {[%clk 0:02:12]} 14. Bf3 {[%clk 0:02:26]}  Nd7 {[%clk 0:02:08]} 15. Qc4 {[%clk 0:02:07]}  Bd6 {[%clk 0:02:01]} 16. Qd5 {[%clk 0:01:50]}  Ne5 {[%clk 0:01:52]} 17. Be2 {[%clk 0:01:37]}  Rd8 {[%clk 0:01:51]} 18. Qe4 {[%clk 0:01:36]}  Rb8 {[%clk 0:01:23]} 19. Rab1 {[%clk 0:01:30]}  b5 {[%clk 0:01:23]} 20. f4 {[%clk 0:00:52]}  Ng4 {[%clk 0:01:20]} 21. Nc6 {[%clk 0:00:37]}  Bf5 {[%clk 0:01:18]} 22. Qf3 {[%clk 0:00:31]}  Nxe3 {[%clk 0:01:09]} 23. Qxe3 {[%clk 0:00:20]}  Re8 {[%clk 0:01:09]} 24. Qa7 {[%clk 0:00:17]}  Ra8 {[%clk 0:01:07]} 25. Qb7 {[%clk 0:00:16]}  Bc5+ {[%clk 0:01:04]} 26. Kh1 {[%clk 0:00:16]}  Bxb1 {[%clk 0:01:05]} 27. Rxb1 {[%clk 0:00:15]}  Rac8 {[%clk 0:01:00]} 28. Bf3 {[%clk 0:00:12]}  Qxf4 {[%clk 0:00:56]} 29. Nb4 {[%clk 0:00:08]}  Bd6 {[%clk 0:00:56]} 30. g3 {[%clk 0:00:07]}  Qf5 {[%clk 0:00:56]} 31. Rf1 {[%clk 0:00:04]}  Rxc3 {[%clk 0:00:34]} 32. Bg2 {[%clk 0:00:05]}  Qg6 {[%clk 0:00:29]} 33. Nd5 {[%clk 0:00:05]}  Rc2 {[%clk 0:00:25]} 34. Qd7 {[%clk 0:00:03]}  Rf8 {[%clk 0:00:26]} 35. Nf4 {[%clk 0:00:02]}  Bxf4 {[%clk 0:00:25]} 36. Rxf4 {[%clk 0:00:02]}  Rc1+ {[%clk 0:00:25]} 37. Bf1 {[%clk 0:00:03]}  Rfc8 {[%clk 0:00:17]} 38. Kg2 {[%clk 0:00:02]}  R8c2+ {[%clk 0:00:17]} 39. Rf2 {[%clk 0:00:02]}  Rxf2+ {[%clk 0:00:13]} 40. Kxf2 {[%clk 0:00:03]}  Qf6+ {[%clk 0:00:13]} 41. Kg1 {[%clk 0:00:02]}  Qxf1# {[%clk 0:00:12]} 0-1


[Site "https://www.chess.com"]

[Event "Titled Tuesday Blitz November 01 Early 2022"]
[White "Pinheiro, Iung Alicio de O."]
[Black "Koridze, Lile"]
[WhiteFideId "2104350"]
[BlackFideId "13612514"]
[WhiteElo "2283"]
[BlackElo "2050"]
[Result "1-0"]
[Round "01"]
[TimeControl "180+1"]
[Date "2022.11.02"]
[WhiteClock "0:01:04"]
[BlackClock "0:00:17"]

1. e4 {[%clk 0:03:00]}  c5 {[%clk 0:02:59]} 2. Nf3 {[%clk 0:02:59]}  d6 {[%clk 0:03:00]} 3. Nc3 {[%clk 0:02:59]}  Nc6 {[%clk 0:02:59]} 4. Bb5 {[%clk 0:02:52]}  Bd7 {[%clk 0:02:59]} 5. O-O {[%clk 0:02:50]}  Nf6 {[%clk 0:02:56]} 6. Re1 {[%clk 0:02:49]}  g6 {[%clk 0:02:53]} 7. Bxc6 {[%clk 0:02:37]}  Bxc6 {[%clk 0:02:51]} 8. e5 {[%clk 0:02:38]}  dxe5 {[%clk 0:02:14]} 9. Nxe5 {[%clk 0:02:39]}  Qc7 {[%clk 0:02:12]} 10. Qe2 {[%clk 0:02:36]}  e6 {[%clk 0:02:04]} 11. d3 {[%clk 0:02:33]}  Bg7 {[%clk 0:02:03]} 12. h3 {[%clk 0:01:59]}  O-O {[%clk 0:02:02]} 13. Bf4 {[%clk 0:02:00]}  Qb6 {[%clk 0:01:51]} 14. Rab1 {[%clk 0:01:55]}  Rfd8 {[%clk 0:01:43]} 15. Nc4 {[%clk 0:01:46]}  Qa6 {[%clk 0:01:39]} 16. a4 {[%clk 0:01:46]}  Nd5 {[%clk 0:01:35]} 17. Be5 {[%clk 0:01:45]}  Nxc3 {[%clk 0:01:20]} 18. bxc3 {[%clk 0:01:39]}  Bd5 {[%clk 0:01:07]} 19. Bxg7 {[%clk 0:01:36]}  Kxg7 {[%clk 0:01:07]} 20. Ne5 {[%clk 0:01:29]}  Qxa4 {[%clk 0:00:56]} 21. c4 {[%clk 0:01:28]}  Bc6 {[%clk 0:00:56]} 22. Ng4 {[%clk 0:01:28]}  h5 {[%clk 0:00:21]} 23. Qe5+ {[%clk 0:01:27]}  Kg8 {[%clk 0:00:19]} 24. Nh6+ {[%clk 0:01:10]}  Kf8 {[%clk 0:00:18]} 25. Qf6 {[%clk 0:01:06]}  Be8 {[%clk 0:00:17]} 26. Rxe6 {[%clk 0:01:04]} 1-0


[Site "https://www.chess.com"]

[Event "Titled Tuesday Blitz November 01 Early 2022"]
[White "Richter, Paul"]
[Black "Blokhin, Sofia"]
[WhiteFideId "2046350"]
[BlackFideId "4508190"]
[WhiteElo "2578"]
[BlackElo "2005"]
[Result "1-0"]
[Round "01"]
[TimeControl "180+1"]
[Date "2022.11.02"]
[WhiteClock "0:00:33"]
[BlackClock "0:00:49"]

1. e4 {[%clk 0:03:00]}  c5 {[%clk 0:02:59]} 2. Nf3 {[%clk 0:02:59]}  e6 {[%clk 0:02:58]} 3. d3 {[%clk 0:02:59]}  Nc6 {[%clk 0:02:56]} 4. Nbd2 {[%clk 0:03:00]}  g6 {[%clk 0:02:56]} 5. g3 {[%clk 0:03:00]}  Bg7 {[%clk 0:02:56]} 6. Bg2 {[%clk 0:03:00]}  Nge7 {[%clk 0:02:56]} 7. O-O {[%clk 0:03:00]}  O-O {[%clk 0:02:56]} 8. Re1 {[%clk 0:03:01]}  d5 {[%clk 0:02:56]} 9. exd5 {[%clk 0:03:02]}  exd5 {[%clk 0:02:55]} 10. c3 {[%clk 0:03:00]}  d4 {[%clk 0:02:45]} 11. c4 {[%clk 0:02:55]}  Bf5 {[%clk 0:02:39]} 12. Ne4 {[%clk 0:02:52]}  b6 {[%clk 0:02:30]} 13. Bg5 {[%clk 0:02:46]}  f6 {[%clk 0:02:24]} 14. Bd2 {[%clk 0:02:29]}  Nc8 {[%clk 0:02:13]} 15. h4 {[%clk 0:02:02]}  Nd6 {[%clk 0:02:04]} 16. Nxd6 {[%clk 0:01:57]}  Qxd6 {[%clk 0:02:05]} 17. Bf4 {[%clk 0:01:57]}  Qd7 {[%clk 0:01:57]} 18. a3 {[%clk 0:01:56]}  Rae8 {[%clk 0:01:50]} 19. Qd2 {[%clk 0:01:56]}  Ne5 {[%clk 0:01:38]} 20. Nxe5 {[%clk 0:01:49]}  fxe5 {[%clk 0:01:38]} 21. Bg5 {[%clk 0:01:44]}  Bh3 {[%clk 0:01:27]} 22. Bd5+ {[%clk 0:01:30]}  Kh8 {[%clk 0:01:26]} 23. b4 {[%clk 0:01:25]}  Bf6 {[%clk 0:01:08]} 24. bxc5 {[%clk 0:01:18]}  bxc5 {[%clk 0:01:06]} 25. Rab1 {[%clk 0:01:17]}  Qf5 {[%clk 0:01:00]} 26. Bh6 {[%clk 0:00:53]}  Bg7 {[%clk 0:00:51]} 27. Bxg7+ {[%clk 0:00:53]}  Kxg7 {[%clk 0:00:52]} 28. Rb7+ {[%clk 0:00:51]}  Kh8 {[%clk 0:00:52]} 29. Be4 {[%clk 0:00:38]}  Qg4 {[%clk 0:00:49]} 30. Qh6 {[%clk 0:00:33]} 1-0


[Site "https://www.chess.com"]

[Event "Titled Tuesday Blitz November 01 Early 2022"]
[White "Safin, Robert"]
[Black "Schut, Han"]
[WhiteFideId "34189120"]
[BlackFideId "1005561"]
[WhiteElo "2219"]
[BlackElo "2024"]
[Result "0-1"]
[Round "01"]
[TimeControl "180+1"]
[Date "2022.11.02"]
[WhiteClock "0:00:01"]
[BlackClock "0:00:09"]

1. e4 {[%clk 0:02:56]}  c5 {[%clk 0:02:56]} 2. c3 {[%clk 0:02:56]}  g6 {[%clk 0:02:54]} 3. d4 {[%clk 0:02:55]}  cxd4 {[%clk 0:02:55]} 4. cxd4 {[%clk 0:02:56]}  d5 {[%clk 0:02:56]} 5. exd5 {[%clk 0:02:56]}  Nf6 {[%clk 0:02:56]} 6. Nc3 {[%clk 0:02:52]}  Nxd5 {[%clk 0:02:56]} 7. Qb3 {[%clk 0:02:51]}  Nb6 {[%clk 0:02:52]} 8. Be3 {[%clk 0:02:50]}  Bg7 {[%clk 0:02:49]} 9. Rd1 {[%clk 0:02:49]}  O-O {[%clk 0:02:47]} 10. Be2 {[%clk 0:02:49]}  Nc6 {[%clk 0:02:30]} 11. d5 {[%clk 0:02:46]}  Ne5 {[%clk 0:02:24]} 12. h3 {[%clk 0:02:41]}  Qc7 {[%clk 0:01:47]} 13. f4 {[%clk 0:01:44]}  Ned7 {[%clk 0:01:33]} 14. Nf3 {[%clk 0:01:39]}  Nf6 {[%clk 0:01:21]} 15. O-O {[%clk 0:01:09]}  Bd7 {[%clk 0:01:18]} 16. Ne5 {[%clk 0:01:05]}  Rac8 {[%clk 0:01:06]} 17. a4 {[%clk 0:01:04]}  Bf5 {[%clk 0:00:42]} 18. g4 {[%clk 0:00:52]}  Be4 {[%clk 0:00:33]} 19. g5 {[%clk 0:00:52]}  Nfxd5 {[%clk 0:00:26]} 20. Bxb6 {[%clk 0:00:19]}  Qxb6+ {[%clk 0:00:17]} 21. Qxb6 {[%clk 0:00:18]}  Nxb6 {[%clk 0:00:17]} 22. Nxe4 {[%clk 0:00:18]}  Nxa4 {[%clk 0:00:18]} 23. b3 {[%clk 0:00:13]}  Nc3 {[%clk 0:00:17]} 24. Nxc3 {[%clk 0:00:12]}  Rxc3 {[%clk 0:00:18]} 25. Bc4 {[%clk 0:00:11]}  Rxh3 {[%clk 0:00:16]} 26. Nxf7 {[%clk 0:00:09]}  Rxf7 {[%clk 0:00:13]} 27. Rd8+ {[%clk 0:00:09]}  Bf8 {[%clk 0:00:14]} 28. Re1 {[%clk 0:00:08]}  Kg7 {[%clk 0:00:14]} 29. Bxf7 {[%clk 0:00:07]}  Kxf7 {[%clk 0:00:14]} 30. Rd7 {[%clk 0:00:07]}  Rxb3 {[%clk 0:00:14]} 31. Kg2 {[%clk 0:00:06]}  a5 {[%clk 0:00:14]} 32. Rh1 {[%clk 0:00:05]}  Kg8 {[%clk 0:00:12]} 33. Rc1 {[%clk 0:00:02]}  Kf7 {[%clk 0:00:10]} 34. Rc8 {[%clk 0:00:02]}  a4 {[%clk 0:00:10]} 35. Rdd8 {[%clk 0:00:03]}  Bg7 {[%clk 0:00:11]} 36. Rd7 {[%clk 0:00:02]}  Rb2+ {[%clk 0:00:11]} 37. Kf3 {[%clk 0:00:02]}  a3 {[%clk 0:00:11]} 38. Rcc7 {[%clk 0:00:03]}  Rb3+ {[%clk 0:00:11]} 39. Kg4 {[%clk 0:00:03]}  Bf8 {[%clk 0:00:12]} 40. Rxb7 {[%clk 0:00:03]}  Re3 {[%clk 0:00:10]} 41. Ra7 {[%clk 0:00:02]}  Ke6 {[%clk 0:00:11]} 42. Rd8 {[%clk 0:00:01]}  Bg7 {[%clk 0:00:10]} 43. Rd2 {[%clk 0:00:02]}  Bb2 {[%clk 0:00:10]} 44. Rc2 {[%clk 0:00:01]}  Kd5 {[%clk 0:00:09]} 0-1


[Site "https://www.chess.com"]

[Event "Titled Tuesday Blitz November 01 Early 2022"]
[White "Sailer, Mike"]
[Black "Turutin, Alexander"]
[WhiteFideId "2012901"]
[BlackFideId "4180623"]
[WhiteElo "2109"]
[BlackElo "2402"]
[Result "1-0"]
[Round "01"]
[TimeControl "180+1"]
[Date "2022.11.02"]
[WhiteClock "0:00:33"]
[BlackClock "0:00:10"]

1. Nf3 {[%clk 0:03:00]}  Nf6 {[%clk 0:02:59]} 2. c4 {[%clk 0:03:00]}  g6 {[%clk 0:02:59]} 3. g3 {[%clk 0:03:01]}  Bg7 {[%clk 0:02:58]} 4. Bg2 {[%clk 0:03:01]}  O-O {[%clk 0:02:59]} 5. O-O {[%clk 0:03:02]}  d6 {[%clk 0:02:59]} 6. Nc3 {[%clk 0:02:56]}  Nc6 {[%clk 0:02:57]} 7. Rb1 {[%clk 0:02:55]}  e5 {[%clk 0:02:46]} 8. d3 {[%clk 0:02:53]}  a5 {[%clk 0:02:43]} 9. a3 {[%clk 0:02:53]}  h6 {[%clk 0:02:43]} 10. b4 {[%clk 0:02:50]}  axb4 {[%clk 0:02:44]} 11. axb4 {[%clk 0:02:51]}  Re8 {[%clk 0:02:43]} 12. b5 {[%clk 0:02:51]}  Nd4 {[%clk 0:02:39]} 13. Nxd4 {[%clk 0:02:49]}  exd4 {[%clk 0:02:40]} 14. Nd5 {[%clk 0:02:50]}  Nxd5 {[%clk 0:02:24]} 15. Bxd5 {[%clk 0:02:49]}  Bh3 {[%clk 0:02:15]} 16. Re1 {[%clk 0:02:48]}  Qc8 {[%clk 0:02:12]} 17. Qc2 {[%clk 0:02:34]}  c6 {[%clk 0:02:11]} 18. bxc6 {[%clk 0:02:33]}  bxc6 {[%clk 0:02:12]} 19. Bf3 {[%clk 0:02:30]}  Ra6 {[%clk 0:01:53]} 20. Bf4 {[%clk 0:02:29]}  Qd7 {[%clk 0:01:45]} 21. Rb2 {[%clk 0:02:24]}  g5 {[%clk 0:01:45]} 22. Bd2 {[%clk 0:02:21]}  Bg4 {[%clk 0:01:43]} 23. Reb1 {[%clk 0:02:07]}  Bxf3 {[%clk 0:00:49]} 24. exf3 {[%clk 0:02:06]}  Qf5 {[%clk 0:00:46]} 25. Kg2 {[%clk 0:02:01]}  h5 {[%clk 0:00:46]} 26. h3 {[%clk 0:01:51]}  g4 {[%clk 0:00:41]} 27. hxg4 {[%clk 0:01:47]}  hxg4 {[%clk 0:00:42]} 28. fxg4 {[%clk 0:01:42]}  Qxg4 {[%clk 0:00:43]} 29. Bf4 {[%clk 0:01:39]}  Qg6 {[%clk 0:00:30]} 30. Rb8 {[%clk 0:01:31]}  Ra8 {[%clk 0:00:28]} 31. Rxa8 {[%clk 0:01:16]}  Rxa8 {[%clk 0:00:27]} 32. Qe2 {[%clk 0:01:15]}  d5 {[%clk 0:00:20]} 33. cxd5 {[%clk 0:01:10]}  cxd5 {[%clk 0:00:21]} 34. Qf3 {[%clk 0:00:55]}  Qf5 {[%clk 0:00:19]} 35. Rb5 {[%clk 0:00:50]}  Rd8 {[%clk 0:00:11]} 36. Rb8 {[%clk 0:00:34]}  Rxb8 {[%clk 0:00:10]} 37. Bxb8 {[%clk 0:00:35]}  Qe6 {[%clk 0:00:10]} 38. Bf4 {[%clk 0:00:33]} 1-0


[Site "https://www.chess.com"]